fUSD/lending_fUSD_20251214
["ID","MTS","AMOUNT","RATE_DAILY","PERIOD"]
[398454071,1765670887686,325.38630701,0.00015268,2]
[398454072,1765670940230,-1000.0,0.00015786,2]
[398454073,1765670996489,-200.0,0.00015806,2]
[398454074,1765670996559,1099.68,0.00015793,2]
[398454104,1765671033342,-200.1,0.0001589,2]
[398454105,1765671033355,-250.0,0.0001589,2]
[398454106,1765671033366,-220.9745459,0.0001589,2]
[398454107,1765671033377,-1037.06,0.00016012,2]
[398454108,1765671033388,-300.0,0.00016023,2]
[398454109,1765671033400,-1200.0,0.00016023,2]
[398454110,1765671033411,-2661.475442,0.00016024,2]
[398454111,1765671033425,-5195.18357432,0.00016024,2]
[398454112,1765671033439,-1268.71098368,0.00016024,2]
[398454113,1765671033451,-999.0,0.00016024,3]
[398454114,1765671033463,-250.0,0.00016038,2]
[398454115,1765671033474,-150.0,0.000162,2]
[398454116,1765671033486,-150.0,0.000162,2]
[398454117,1765671033497,-150.0,0.000162,2]
[398454118,1765671033508,-150.0,0.000162,2]
[398454119,1765671033520,-150.0,0.000162,2]
[398454120,1765671033531,-150.0,0.000162,2]
[398454121,1765671033542,-150.0,0.0001632,2]
[398454122,1765671033553,-150.0,0.00016338,2]
[398454123,1765671033564,-150.0,0.000164,2]
[398454124,1765671033575,-4166.00272616,0.00016438,2]
[398454125,1765671033589,-3272.42727384,0.00016438,2]
[398454126,1765671033600,-150.0,0.0001644,2]
[398454127,1765671033611,-150.0,0.00016477,2]
[398454128,1765671033623,-1247.11,0.000165,2]
[398454129,1765671033634,-150.0,0.0001656,2]
[398454130,1765671033649,-165.22,0.00016577,2]
[398454131,1765671033661,-150.0,0.000166,2]
[398454132,1765671033672,-150.0,0.00016615,2]
[398454133,1765671033683,-578.20924308,0.00016624,2]
[398454134,1765671033695,-150.0,0.0001668,2]
[398454135,1765671033707,-150.0,0.00016754,2]
[398454136,1765671033718,-300.0,0.0001679,2]
[398454137,1765671033730,-995.0,0.0001679,2]
[398454138,1765671033741,-150.0,0.000168,2]
[398454139,1765671033753,-150.0,0.000168,2]
[398454140,1765671033764,-1024.79089209,0.00016845,2]
[398454141,1765671033775,-150.0,0.00016892,2]
[398454142,1765671033787,-6025.4908,0.000169,2]
[398454143,1765671033799,-1000.0,0.000169,2]
[398454144,1765671033810,-3074.76963994,0.000169,2]
[398454145,1765671033824,-330.10701486,0.000169,2]
[398454146,1765671033836,-1000.0,0.000169,2]
[398454147,1765671033847,-155.71682144,0.000169,2]
[398454148,1765671033858,-196.6845,0.000169,2]
[398454149,1765671033869,-500.0,0.00016904,2]
[398454150,1765671033881,-150.0,0.0001692,2]
[398454151,1765671033892,-528.65048037,0.00016973,2]
[398454152,1765671033903,-500.0,0.00016973,2]
[398454153,1765671033915,-500.0,0.00016973,2]
[398454154,1765671033926,-760.01828488,0.00016973,2]
[398454155,1765671033940,-2754.49041436,0.00016973,2]
[398454156,1765671033951,-1298.2212291,0.00016979,2]
[398454157,1765671033961,-2947.64052081,0.00016979,2]
[398454158,1765671033975,-16284.44268319,0.00016979,2]
[398454159,1765671033987,-1404.0,0.00016986,2]
[398454160,1765671033997,-1000.0,0.0001699,2]
[398454161,1765671034007,-151.0,0.0001699,2]
[398454162,1765671034019,-1000.0,0.0001699,2]
[398454163,1765671034029,-1000.0,0.0001699,2]
[398454164,1765671034041,-1000.0,0.0001699,2]
[398454165,1765671034052,-1000.0,0.0001699,2]
[398454166,1765671034063,-723.15191175,0.0001699,2]
[398454167,1765671034076,-276.84808825,0.0001699,2]
[398454168,1765671034088,-243.37498028,0.0001699,2]
[398454169,1765671034101,-717.044553,0.0001699,2]
[398454170,1765671034115,-39.58046672,0.0001699,2]
[398454171,1765671034125,-1000.0,0.0001699,2]
[398454172,1765671034136,-210.79823342,0.0001699,2]
[398454190,1765671039952,-284.18709393,0.0001699,2]
[398454191,1765671041469,-505.01467265,0.0001699,2]
[398454192,1765671041538,-1000.0,0.0001699,2]
[398454193,1765671041577,-1000.0,0.0001699,2]
[398454194,1765671041604,-1000.0,0.0001699,2]
[398454195,1765671041623,-227.43,0.0001699,2]
[398454196,1765671041634,-446.1707911,0.00016995,2]
[398454197,1765671041647,-304.032575,0.00016995,2]
[398454386,1765671124611,2240.0,0.00022,30]
[398454388,1765671205624,2000.0,0.00022,30]
[398454389,1765671209108,159.17,0.00012851,2]
[398454392,1765671644742,150.0,0.00015801,2]
[398454393,1765671740825,1237.08,0.00015796,2]
[398454394,1765671756575,300.0,0.00015753,3]
[398454395,1765671844401,162.9,0.00015774,2]
[398454396,1765671872362,166.66,0.00014977,2]
[398454397,1765671872565,166.66,0.00015292,2]
[398454398,1765671872752,166.66,0.00015608,2]
[398454399,1765671990139,154.92,7.927e-05,2]
[398454400,1765671990196,154.92,8.917e-05,2]
[398454401,1765671990252,154.92,9.908e-05,2]
[398454402,1765671990327,154.92,0.00010899,2]
[398454403,1765671990520,154.92,0.0001189,2]
[398454404,1765671990766,154.92,0.00012881,2]
[398454405,1765671991198,154.92,0.00013872,2]
[398454406,1765671991407,154.92,0.00014862,2]
[398454428,1765672231902,-154.92,0.00015853,2]
[398454429,1765672231914,-149.36914531,0.0001587,2]
[398454433,1765672233506,-100.63085469,0.0001587,2]
[398454434,1765672233553,-500.0,0.00015886,2]
[398454435,1765672233574,-151.0,0.00015886,2]
[398454436,1765672233593,-30.32978785,0.00015886,2]
[398454437,1765672235537,-120.67021215,0.00015886,2]
[398454438,1765672235547,-151.0,0.00015886,2]
[398454439,1765672235556,-430.08280435,0.00015896,2]
[398454440,1765672235567,-653.94812092,0.00015896,2]
[398454441,1765672235578,-2456.31907473,0.00015896,2]
[398454442,1765672235587,-1200.0,0.00015899,2]
[398454443,1765672235597,-166.66,0.00015923,2]
[398454444,1765672235606,-154.36880722,0.00015997,2]
[398454445,1765672235615,-300.0,0.00015999,2]
[398454446,1765672235624,-50455.98599517,0.00016,4]
[398454447,1765672235639,-1254.41808677,0.00016,4]
[398454450,1765672237914,-21918.08337215,0.00016,4]
[398454451,1765672237926,-281.02459137,0.00016,4]
[398454452,1765672237938,-1253.02955847,0.00016,4]
[398454453,1765672237985,-2364.81478464,0.00016,4]
[398454454,1765672237997,-1008.93843287,0.00016,4]
[398454455,1765672238008,-3257.28895896,0.00016,4]
[398454456,1765672238059,-1880.91159741,0.00016,4]
[398454457,1765672238070,-3225.90577544,0.00016,4]
[398454458,1765672238081,-1575.97488614,0.00016,4]
[398454459,1765672238125,-1103.16022683,0.00016,4]
[398454535,1765672239951,-4983.66200681,0.00016,4]
[398454536,1765672240015,-953.0,0.00016,4]
[398454537,1765672240083,-467.805,0.00016,4]
[398454538,1765672240095,-588.0,0.00016,4]
[398454539,1765672240326,-369.91258022,0.00016,4]
[398454540,1765672240338,-505.7242215,0.00016,4]
[398454541,1765672240349,-1250.39518308,0.00016,4]
[398454571,1765672247442,-267.44,0.00016,4]
[398454578,1765672547907,168.0,0.00015761,2]
[398454579,1765672598903,200.0,0.00015524,2]
[398454580,1765672679174,498.02,0.00015494,2]
[398454581,1765672914277,1703.33,0.00015462,2]
[398454582,1765673004888,2182.49,0.000148,5]
[398454583,1765673004910,3341.51,0.000148,5]
[398454584,1765673005122,5524.0,0.000147,3]
[398454585,1765673005359,1134.5,0.000145,2]
[398454586,1765673005380,10000.01,0.000145,2]
[398454587,1765673005402,10000.01,0.000145,2]
[398454588,1765673005423,10000.01,0.000145,2]
[398454589,1765673005444,10000.01,0.000145,2]
[398454590,1765673005469,10000.01,0.000145,2]
[398454591,1765673005491,10000.01,0.000145,2]
[398454592,1765673005514,10000.01,0.000145,2]
[398454593,1765673005537,10000.01,0.000145,2]
[398454594,1765673005569,1722.42,0.000145,2]
[398454595,1765673011665,170.26987084,0.00015342,2]
[398454596,1765673012827,-599.31038785,0.00015461,3]
[398454597,1765673018668,-273.55218241,0.00015461,3]
[398454598,1765673020379,-126.13742974,0.00015461,3]
[398454720,1765673089202,207.0,9.989e-05,2]
[398454721,1765673089508,207.0,9.989e-05,2]
[398454722,1765673089782,207.0,9.989e-05,2]
[398454723,1765673091963,207.0,9.989e-05,2]
[398454724,1765673092003,207.0,9.989e-05,2]
[398454725,1765673100537,250.0,0.00015674,2]
[398454726,1765673106730,441.652156,0.0001576,2]
[398454727,1765673133743,300.0,0.00015753,3]
[398454729,1765673156913,150.0,0.00015467,2]
[398454732,1765673264439,613.8,0.00015388,2]
[398454733,1765673287499,280.38,0.00015753,3]
[398454734,1765673291432,1000.0,0.000225,120]
[398454735,1765673387900,2082.57,0.00015233,2]
[398454754,1765673432971,-224.53403638,0.00015838,2]
[398454755,1765673432981,-109.70276362,0.0001584,2]
[398454756,1765673432993,-2184.70259022,0.0001584,2]
[398454757,1765673433002,-219.0,0.00015863,2]
[398454758,1765673433012,-139.11123975,0.000159,2]
[398454759,1765673433024,-191.69049546,0.000159,2]
[398454760,1765673433033,-166.67,0.00015905,2]
[398454761,1765673433042,-300.0,0.00015925,2]
[398454762,1765673433051,-1200.0,0.00015925,2]
[398454763,1765673433061,-150.0,0.00015926,2]
[398454764,1765673433070,-156.45165699,0.00015926,2]
[398454765,1765673433080,-150.0,0.00015926,2]
[398454766,1765673433090,-150.0,0.00015926,2]
[398454767,1765673433099,-150.0,0.00015926,2]
[398454768,1765673433108,-150.0,0.00015926,2]
[398454769,1765673433117,-500.0,0.00015926,2]
[398454770,1765673433127,-150.0,0.00015926,2]
[398454771,1765673433136,-150.0,0.00015926,2]
[398454772,1765673433146,-150.0,0.00015926,2]
[398454773,1765673433155,-330.80173516,0.00015937,2]
[398454774,1765673433164,-500.0,0.00015946,2]
[398454775,1765673433174,-500.0,0.00015946,2]
[398454776,1765673433184,-617.0,0.00015946,2]
[398454777,1765673433193,-1215.59759387,0.00016,4]
[398454778,1765673433205,-10539.5987248,0.00016,4]
[398454779,1765673433217,-1209.79397114,0.00016,4]
[398454780,1765673433233,-4790.94264816,0.00016,4]
[398454781,1765673433244,-5763.74827341,0.00016,4]
[398454782,1765673433254,-330.80173516,0.00016028,2]
[398454783,1765673433265,-600.21,0.00016038,2]
[398454784,1765673433275,-437.0,0.00016047,2]
[398454785,1765673433284,-4690.56606465,0.00016048,2]
[398454786,1765673433296,-17379.82936365,0.00016048,2]
[398454787,1765673433305,-500.0,0.00016062,2]
[398454788,1765673433315,-150.0,0.00016063,2]
[398454789,1765673433324,-150.0,0.00016063,2]
[398454790,1765673433334,-150.0,0.00016063,2]
[398454791,1765673433343,-500.0,0.00016063,2]
[398454792,1765673433352,-150.0,0.00016063,2]
[398454793,1765673433362,-150.0,0.00016063,2]
[398454794,1765673433371,-500.0,0.00016083,2]
[398454795,1765673433381,-500.0,0.00016083,2]
[398454796,1765673433390,-617.0,0.00016083,2]
[398454797,1765673433399,-330.80173516,0.00016118,2]
[398454798,1765673433409,-400.0,0.00016135,2]
[398454799,1765673433419,-168.0,0.00016136,2]
[398454800,1765673433428,-1000.0,0.00016148,2]
[398454801,1765673433438,-191.4226718,0.00016148,2]
[398454802,1765673433447,-1000.0,0.00016148,2]
[398454803,1765673433457,-1000.0,0.00016148,2]
[398454804,1765673433466,-1000.0,0.00016148,2]
[398454805,1765673433475,-1000.0,0.00016148,2]
[398454806,1765673433485,-1000.0,0.00016148,2]
[398454807,1765673433494,-300.0,0.00016148,2]
[398454808,1765673433503,-995.0,0.00016148,2]
[398454809,1765673433513,-265.53453829,0.00016148,2]
[398454810,1765673433523,-200.0,0.00016148,2]
[398454811,1765673433532,-207.4,0.00016148,2]
[398454812,1765673433541,-215.0738,0.00016148,2]
[398454813,1765673433552,-223.0315306,0.00016148,2]
[398454814,1765673433562,-231.28369723,0.00016148,2]
[398454815,1765673433572,-239.84119403,0.00016148,2]
[398454816,1765673433582,-248.71531821,0.00016148,2]
[398454817,1765673433592,-257.91778498,0.00016148,2]
[398454818,1765673433602,-267.46074303,0.00016148,2]
[398454819,1765673433612,-277.35679052,0.00016148,2]
[398454820,1765673433622,-500.0,0.00016153,2]
[398454821,1765673433632,-500.0,0.00016153,2]
[398454822,1765673433641,-500.0,0.00016164,2]
[398454823,1765673433651,-150.0,0.00016168,2]
[398454824,1765673433661,-150.0,0.00016168,2]
[398454825,1765673433671,-201.31328406,0.00016168,2]
[398454826,1765673433681,-150.0,0.00016168,2]
[398454827,1765673433691,-185.01608608,0.00016168,2]
[398454828,1765673433701,-163.0,0.00016193,2]
[398454829,1765673433711,-200.0,0.000162,2]
[398454830,1765673433722,-150.0,0.000162,2]
[398454831,1765673433731,-150.0,0.000162,2]
[398454832,1765673433740,-500.0,0.000162,2]
[398454833,1765673433749,-150.0,0.000162,2]
[398454834,1765673433758,-150.0,0.000162,2]
[398454835,1765673433767,-150.0,0.000162,2]
[398454836,1765673433776,-150.0,0.000162,2]
[398454837,1765673433786,-150.0,0.000162,2]
[398454838,1765673434182,-150.0,0.000162,2]
[398454839,1765673434222,-151.0,0.000162,2]
[398454840,1765673434239,-330.80173516,0.00016209,2]
[398454841,1765673434250,-1162.0,0.00016213,2]
[398454842,1765673434260,-151.0,0.00016213,2]
[398454843,1765673434271,-218.756469,0.00016213,2]
[398454844,1765673434281,-400.0,0.00016215,2]
[398454845,1765673434291,-500.0,0.0001622,2]
[398454846,1765673434300,-300.0,0.0001622,2]
[398454847,1765673434309,-617.0,0.0001622,2]
[398454848,1765673434319,-400.0,0.00016222,2]
[398454849,1765673434328,-1288.0,0.00016228,2]
[398454850,1765673434338,-204.89331515,0.00016237,2]
[398454851,1765673434348,-166.66,0.00016238,2]
[398454852,1765673434356,-166.0,0.00016243,2]
[398454853,1765673434366,-165.86,0.00016277,2]
[398454854,1765673434375,-500.0,0.0001629,2]
[398454855,1765673434384,-560.0,0.0001629,2]
[398454856,1765673434394,-703.67,0.000163,2]
[398454857,1765673434404,-1215.76,0.000163,2]
[398454858,1765673434413,-703.86,0.000163,2]
[398454859,1765673434425,-330.80173516,0.000163,2]
[398454860,1765673434434,-150.0,0.00016305,2]
[398454861,1765673434443,-200.0,0.00016305,2]
[398454862,1765673434452,-255.17302404,0.00016305,2]
[398454863,1765673434462,-400.0,0.00016311,2]
[398454864,1765673434472,-150.0,0.00016337,2]
[398454865,1765673434484,-200.0,0.00016337,2]
[398454866,1765673434495,-500.0,0.00016337,2]
[398454867,1765673434506,-150.0,0.00016337,2]
[398454868,1765673434517,-400.0,0.00016351,2]
[398454869,1765673434530,-500.0,0.00016357,2]
[398454870,1765673434539,-617.0,0.00016357,2]
[398454871,1765673434548,-400.0,0.0001638,2]
[398454872,1765673434557,-151.0,0.00016386,2]
[398454873,1765673434566,-17540.54606843,0.00016386,2]
[398454874,1765673434811,1000.0,0.00015317,2]
[398454885,1765673438126,-24845.04712779,0.00016386,2]
[398454886,1765673438139,-293.61604338,0.00016386,2]
[398454887,1765673438233,-41384.0643604,0.00016386,2]
[398454888,1765673438244,-150.0,0.000164,2]
[398454889,1765673438254,-897.5754,0.000164,2]
[398454890,1765673438265,-400.0,0.00016425,2]
[398454891,1765673438275,-500.0,0.00016427,2]
[398454892,1765673438285,-151.0,0.00016438,2]
[398454893,1765673438295,-151.0,0.00016438,2]
[398454894,1765673438305,-151.0,0.00016438,2]
[398454895,1765673438315,-151.0,0.00016438,2]
[398454896,1765673438325,-151.0,0.00016438,2]
[398454897,1765673438335,-151.0,0.00016438,2]
[398454899,1765673438346,-189.90068,0.00016438,2]
[398454901,1765673438355,-151.0,0.00016438,2]
[398454903,1765673438364,-151.0,0.00016438,2]
[398454904,1765673438374,-500.0,0.00016438,2]
[398454905,1765673438383,-500.0,0.00016438,2]
[398454907,1765673438392,-418.12505272,0.00016438,2]
[398454909,1765673438401,-722.37,0.00016438,2]
[398454911,1765673438411,-151.0,0.00016438,2]
[398454913,1765673438420,-151.0,0.00016438,2]
[398454915,1765673438430,-151.0,0.00016438,2]
[398454917,1765673438439,-151.0,0.00016438,2]
[398454919,1765673438448,-151.0,0.00016438,2]
[398454921,1765673438459,-151.0,0.00016438,2]
[398454923,1765673438468,-189.867244,0.00016438,2]
[398454924,1765673438478,-151.0,0.00016438,2]
[398454927,1765673438488,-151.0,0.00016438,2]
[398454929,1765673438497,-151.0,0.00016438,2]
[398454931,1765673438506,-151.0,0.00016438,2]
[398454933,1765673438516,-151.0,0.00016438,2]
[398454935,1765673438526,-151.0,0.00016438,2]
[398454937,1765673438535,-151.0,0.00016438,2]
[398454939,1765673438544,-151.0,0.00016438,2]
[398454941,1765673438554,-151.0,0.00016438,2]
[398454943,1765673438563,-151.0,0.00016438,2]
[398454945,1765673438572,-151.0,0.00016438,2]
[398454946,1765673438581,-151.0,0.00016438,2]
[398454949,1765673438591,-151.0,0.00016438,2]
[398454950,1765673438601,-151.0,0.00016438,2]
[398454952,1765673438610,-151.0,0.00016438,2]
[398454954,1765673438620,-200.832929,0.00016438,2]
[398454956,1765673438629,-200.832929,0.00016438,2]
[398454958,1765673438638,-200.832929,0.00016438,2]
[398454960,1765673438648,-200.832929,0.00016438,2]
[398454962,1765673438657,-151.0,0.00016438,2]
[398454964,1765673438666,-151.0,0.00016438,2]
[398454966,1765673438675,-151.0,0.00016438,2]
[398454968,1765673438684,-151.0,0.00016438,2]
[398454970,1765673438694,-151.0,0.00016438,2]
[398454972,1765673438703,-151.0,0.00016438,2]
[398454974,1765673438713,-151.0,0.00016438,2]
[398454976,1765673438722,-151.0,0.00016438,2]
[398454978,1765673438733,-151.0,0.00016438,2]
[398454980,1765673438744,-151.0,0.00016438,2]
[398454982,1765673438754,-151.0,0.00016438,2]
[398454984,1765673438763,-151.0,0.00016438,2]
[398454986,1765673438772,-155.287212,0.00016438,2]
[398454988,1765673438780,-151.0,0.00016438,2]
[398454990,1765673438790,-151.0,0.00016438,2]
[398454992,1765673438799,-151.0,0.00016438,2]
[398454994,1765673438808,-151.0,0.00016438,2]
[398454995,1765673438821,-151.0,0.00016438,2]
[398454997,1765673438830,-151.0,0.00016438,2]
[398454999,1765673438840,-151.0,0.00016438,2]
[398455001,1765673438850,-151.0,0.00016438,2]
[398455002,1765673438860,-151.0,0.00016438,2]
[398455003,1765673438870,-151.0,0.00016438,2]
[398455004,1765673438879,-151.0,0.00016438,2]
[398455005,1765673438890,-151.0,0.00016438,2]
[398455006,1765673438899,-234.892774,0.00016438,2]
[398455007,1765673438909,-151.0,0.00016438,2]
[398455008,1765673438918,-151.0,0.00016438,2]
[398455009,1765673438927,-151.0,0.00016438,2]
[398455010,1765673438936,-151.0,0.00016438,2]
[398455011,1765673438946,-228.975484,0.00016438,2]
[398455012,1765673438955,-1067.365444,0.00016438,2]
[398455013,1765673438964,-1067.365444,0.00016438,2]
[398455014,1765673438973,-1067.365444,0.00016438,2]
[398455015,1765673438983,-1067.365444,0.00016438,2]
[398455016,1765673438992,-1067.365444,0.00016438,2]
[398455017,1765673439002,-151.0,0.00016438,2]
[398455018,1765673439013,-1067.365444,0.00016438,2]
[398455019,1765673439023,-151.0,0.00016438,2]
[398455020,1765673439032,-1067.365444,0.00016438,2]
[398455021,1765673439041,-1067.365444,0.00016438,2]
[398455022,1765673439051,-151.0,0.00016438,2]
[398455023,1765673439060,-151.0,0.00016438,2]
[398455024,1765673439070,-282.160474,0.00016438,2]
[398455026,1765673439079,-282.160474,0.00016438,2]
[398455027,1765673439088,-282.160474,0.00016438,2]
[398455029,1765673439098,-282.160474,0.00016438,2]
[398455032,1765673439109,-282.160474,0.00016438,2]
[398455034,1765673439119,-282.160474,0.00016438,2]
[398455035,1765673439129,-282.160474,0.00016438,2]
[398455037,1765673439139,-282.160474,0.00016438,2]
[398455039,1765673439148,-151.0,0.00016438,2]
[398455041,1765673439158,-151.0,0.00016438,2]
[398455043,1765673439168,-151.0,0.00016438,2]
[398455045,1765673439177,-151.0,0.00016438,2]
[398455047,1765673439187,-151.0,0.00016438,2]
[398455049,1765673439197,-151.0,0.00016438,2]
[398455052,1765673439207,-151.0,0.00016438,2]
[398455054,1765673439216,-151.0,0.00016438,2]
[398455056,1765673439226,-151.0,0.00016438,2]
[398455058,1765673439235,-229.476512,0.00016438,2]
[398455060,1765673439245,-151.0,0.00016438,2]
[398455062,1765673439255,-151.0,0.00016438,2]
[398455064,1765673439264,-151.0,0.00016438,2]
[398455066,1765673439273,-151.0,0.00016438,2]
[398455068,1765673439283,-151.0,0.00016438,2]
[398455070,1765673439292,-218.413693,0.00016438,2]
[398455072,1765673439301,-151.0,0.00016438,2]
[398455074,1765673439311,-151.0,0.00016438,2]
[398455076,1765673439320,-151.0,0.00016438,2]
[398455078,1765673439330,-151.0,0.00016438,2]
[398455080,1765673439339,-151.0,0.00016438,2]
[398455082,1765673439349,-151.0,0.00016438,2]
[398455084,1765673439358,-151.0,0.00016438,2]
[398455086,1765673439368,-151.0,0.00016438,2]
[398455088,1765673439377,-151.0,0.00016438,2]
[398455090,1765673439386,-151.0,0.00016438,2]
[398455092,1765673439395,-151.0,0.00016438,2]
[398455094,1765673439404,-151.0,0.00016438,2]
[398455096,1765673439413,-151.0,0.00016438,2]
[398455098,1765673439421,-151.0,0.00016438,2]
[398455100,1765673439430,-156.41344,0.00016438,2]
[398455102,1765673439439,-151.0,0.00016438,2]
[398455104,1765673439448,-659.4,0.00016438,2]
[398455106,1765673439459,-150.0,0.00016442,2]
[398455108,1765673439468,-150.0,0.00016457,2]
[398455110,1765673439478,-250.0,0.00016474,2]
[398455112,1765673439487,-600.0,0.00016474,2]
[398455114,1765673439496,-150.0,0.00016474,2]
[398455116,1765673439505,-800.0,0.00016479,2]
[398455118,1765673439514,-8206.5094,0.00016479,2]
[398455120,1765673439522,-151.0,0.00016479,2]
[398455122,1765673439531,-151.0,0.00016479,2]
[398455124,1765673439541,-151.0,0.00016479,2]
[398455125,1765673439549,-151.0,0.00016479,2]
[398455126,1765673439559,-151.0,0.00016479,2]
[398455127,1765673439568,-151.0,0.00016479,2]
[398455128,1765673439577,-151.0,0.00016479,2]
[398455129,1765673439586,-151.0,0.00016479,2]
[398455130,1765673439595,-151.0,0.00016479,2]
[398455131,1765673439604,-151.0,0.00016479,2]
[398455132,1765673439614,-1067.365444,0.00016479,2]
[398455133,1765673439623,-1067.365444,0.00016479,2]
[398455134,1765673439632,-1067.365444,0.00016479,2]
[398455135,1765673439641,-1067.365444,0.00016479,2]
[398455136,1765673439650,-282.160474,0.00016479,2]
[398455137,1765673439659,-282.160474,0.00016479,2]
[398455138,1765673439668,-282.160474,0.00016479,2]
[398455139,1765673439677,-282.160474,0.00016479,2]
[398455140,1765673439686,-233.180508,0.00016479,2]
[398455141,1765673439695,-151.0,0.00016479,2]
[398455142,1765673439704,-151.0,0.00016479,2]
[398455143,1765673439713,-151.0,0.00016479,2]
[398455144,1765673439722,-151.0,0.00016479,2]
[398455145,1765673439731,-221.878754,0.00016479,2]
[398455146,1765673439740,-151.0,0.00016479,2]
[398455147,1765673439748,-151.0,0.00016486,2]
[398455148,1765673439757,-151.0,0.00016486,2]
[398455149,1765673439766,-151.0,0.00016486,2]
[398455150,1765673439776,-151.0,0.00016486,2]
[398455151,1765673439784,-151.0,0.00016486,2]
[398455152,1765673439793,-230.834988,0.00016486,2]
[398455153,1765673439802,-151.0,0.00016486,2]
[398455154,1765673439812,-151.0,0.00016486,2]
[398455155,1765673439824,-151.0,0.00016486,2]
[398455156,1765673439833,-200.832929,0.00016486,2]
[398455157,1765673439843,-200.832929,0.00016486,2]
[398455158,1765673439851,-200.832929,0.00016486,2]
[398455159,1765673439861,-200.832929,0.00016486,2]
[398455160,1765673439869,-151.0,0.00016486,2]
[398455161,1765673439878,-500.0,0.00016494,2]
[398455162,1765673439887,-617.0,0.00016494,2]
[398455163,1765673439896,-150.0,0.000165,2]
[398455164,1765673439905,-155.273829,0.000165,2]
[398455165,1765673439914,-228.496537,0.000165,2]
[398455166,1765673439923,-151.0,0.000165,2]
[398455167,1765673439932,-151.0,0.000165,2]
[398455168,1765673439941,-151.0,0.000165,2]
[398455169,1765673439949,-151.0,0.000165,2]
[398455170,1765673439959,-151.0,0.000165,2]
[398455171,1765673439968,-151.0,0.000165,2]
[398455172,1765673439977,-151.0,0.000165,2]
[398455173,1765673439986,-151.0,0.000165,2]
[398455174,1765673439995,-151.0,0.000165,2]
[398455175,1765673440005,-151.0,0.000165,2]
[398455177,1765673440014,-313.00904,0.000165,2]
[398455178,1765673440023,-313.00904,0.000165,2]
[398455179,1765673440032,-313.00904,0.000165,2]
[398455180,1765673440041,-313.00904,0.000165,2]
[398455181,1765673440050,-151.0,0.000165,2]
[398455182,1765673440058,-241.904183,0.000165,2]
[398455184,1765673440067,-151.0,0.000165,2]
[398455185,1765673440076,-151.0,0.000165,2]
[398455186,1765673440085,-151.0,0.000165,2]
[398455187,1765673440094,-178.995156,0.000165,2]
[398455188,1765673440103,-151.0,0.000165,2]
[398455189,1765673440112,-151.0,0.000165,2]
[398455190,1765673440121,-151.0,0.000165,2]
[398455191,1765673440130,-151.0,0.000165,2]
[398455192,1765673440139,-151.0,0.000165,2]
[398455193,1765673440148,-151.0,0.000165,2]
[398455194,1765673440157,-151.0,0.000165,2]
[398455195,1765673440167,-249.35722,0.000165,2]
[398455196,1765673440176,-151.0,0.000165,2]
[398455197,1765673440186,-151.0,0.000165,2]